fUSD/lending_fUSD_20241118
["ID","MTS","AMOUNT","RATE_DAILY","PERIOD"]
[342505159,1731940244683,-500.0,9.999e-05,2]
[342505160,1731940244691,-500.0,9.999e-05,2]
[342505161,1731940244701,-307.84,9.999e-05,2]
[342505162,1731940244709,-1057.42,9.999e-05,2]
[342505163,1731940244719,-1057.42,9.999e-05,2]
[342505164,1731940244729,-1057.42,9.999e-05,2]
[342505165,1731940244739,-1057.42,9.999e-05,2]
[342505166,1731940244751,-1057.42,9.999e-05,2]
[342505167,1731940244760,-1057.42,9.999e-05,2]
[342505168,1731940244769,-1057.42,9.999e-05,2]
[342505169,1731940244778,-1057.42,9.999e-05,2]
[342505170,1731940244787,-1057.42,9.999e-05,2]
[342505171,1731940244796,-1057.42,9.999e-05,2]
[342505172,1731940244805,-1057.42,9.999e-05,2]
[342505173,1731940244814,-1057.42,9.999e-05,2]
[342505174,1731940244824,-1057.42,9.999e-05,2]
[342505175,1731940244834,-1057.42,9.999e-05,2]
[342505176,1731940244843,-1057.42,9.999e-05,2]
[342505177,1731940244853,-1057.42,9.999e-05,2]
[342505178,1731940244864,-1057.42,9.999e-05,2]
[342505179,1731940244872,-1057.42,9.999e-05,2]
[342505180,1731940244881,-1057.42,9.999e-05,2]
[342505181,1731940244891,-1057.42,9.999e-05,2]
[342505182,1731940244900,-1057.42,9.999e-05,2]
[342505183,1731940244909,-1057.64,9.999e-05,2]
[342505184,1731940244920,-500.0,9.999e-05,2]
[342505185,1731940244930,-500.0,9.999e-05,2]
[342505186,1731940244939,-500.0,9.999e-05,2]
[342505187,1731940244948,-500.0,9.999e-05,2]
[342505188,1731940244957,-500.0,9.999e-05,2]
[342505189,1731940244966,-500.0,9.999e-05,2]
[342505190,1731940244976,-500.0,9.999e-05,2]
[342505191,1731940244985,-500.0,9.999e-05,2]
[342505192,1731940244994,-500.0,9.999e-05,2]
[342505193,1731940245007,-500.0,9.999e-05,2]
[342505194,1731940245017,-500.0,9.999e-05,2]
[342505195,1731940245026,-500.0,9.999e-05,2]
[342505196,1731940245035,-500.0,9.999e-05,2]
[342505197,1731940245043,-500.0,9.999e-05,2]
[342505198,1731940245053,-500.0,9.999e-05,2]
[342505199,1731940245062,-523.35,9.999e-05,2]
[342505200,1731940245071,-550.27,9.999e-05,2]
[342505201,1731940245079,-503.09,9.999e-05,2]
[342505202,1731940245089,-503.09,9.999e-05,2]
[342505203,1731940245098,-503.09,9.999e-05,2]
[342505204,1731940245107,-503.09,9.999e-05,2]
[342505205,1731940245117,-503.09,9.999e-05,2]
[342505206,1731940245125,-503.09,9.999e-05,2]
[342505207,1731940245134,-503.09,9.999e-05,2]
[342505208,1731940245143,-503.09,9.999e-05,2]
[342505209,1731940245152,-503.09,9.999e-05,2]
[342505210,1731940245161,-503.09,9.999e-05,2]
[342505211,1731940245171,-503.09,9.999e-05,2]
[342505212,1731940245180,-503.09,9.999e-05,2]
[342505213,1731940245189,-503.09,9.999e-05,2]
[342505214,1731940245198,-503.09,9.999e-05,2]
[342505215,1731940245207,-503.09,9.999e-05,2]
[342505216,1731940245216,-503.09,9.999e-05,2]
[342505217,1731940245225,-503.09,9.999e-05,2]
[342505218,1731940245234,-503.09,9.999e-05,2]
[342505219,1731940245243,-503.09,9.999e-05,2]
[342505220,1731940245252,-503.09,9.999e-05,2]
[342505221,1731940245261,-503.09,9.999e-05,2]
[342505222,1731940245271,-503.09,9.999e-05,2]
[342505223,1731940245281,-503.29,9.999e-05,2]
[342505224,1731940245289,-454.94,9.999e-05,2]
[342505225,1731940245299,-500.0,9.999e-05,2]
[342505226,1731940245307,-500.0,9.999e-05,2]
[342505227,1731940245316,-297.99145388,9.999e-05,2]
[342505228,1731940245325,-500.0,9.999e-05,2]
[342505229,1731940245334,-500.0,9.999e-05,2]
[342505230,1731940245345,-266.91002325,9.999e-05,2]
[342505231,1731940245354,-500.0,9.999e-05,2]
[342505232,1731940245364,-500.0,9.999e-05,2]
[342505233,1731940245373,-500.0,9.999e-05,2]
[342505234,1731940245383,-500.0,9.999e-05,2]
[342505235,1731940245392,-500.0,9.999e-05,2]
[342505236,1731940245402,-500.0,9.999e-05,2]
[342505237,1731940245411,-500.0,9.999e-05,2]
[342505238,1731940245421,-500.0,9.999e-05,2]
[342505239,1731940245430,-460.10981144,9.999e-05,2]
[342505240,1731940245439,-500.0,9.999e-05,2]
[342505241,1731940245448,-500.0,9.999e-05,2]
[342505242,1731940245457,-500.0,9.999e-05,2]
[342505243,1731940245467,-500.0,9.999e-05,2]
[342505244,1731940245476,-500.0,9.999e-05,2]
[342505245,1731940245486,-500.0,9.999e-05,2]
[342505246,1731940245495,-500.0,9.999e-05,2]
[342505247,1731940245504,-500.0,9.999e-05,2]
[342505248,1731940245513,-213.39062575,9.999e-05,2]
[342505249,1731940245522,-19797.08255303,9.999e-05,2]
[342505250,1731940245531,-500.0,9.999e-05,2]
[342505251,1731940245540,-500.0,9.999e-05,2]
[342505252,1731940245549,-500.0,9.999e-05,2]
[342505253,1731940245559,-500.0,9.999e-05,2]
[342505254,1731940245568,-500.0,9.999e-05,2]
[342505255,1731940245577,-500.0,9.999e-05,2]
[342505256,1731940245586,-500.0,9.999e-05,2]
[342505257,1731940245596,-500.0,9.999e-05,2]
[342505258,1731940245605,-500.0,9.999e-05,2]
[342505259,1731940245614,-500.0,9.999e-05,2]
[342505260,1731940245623,-500.0,9.999e-05,2]
[342505261,1731940245632,-500.0,9.999e-05,2]
[342505262,1731940245642,-500.0,9.999e-05,2]
[342505263,1731940245651,-593.11535721,9.999e-05,2]
[342505264,1731940245661,-500.0,9.999e-05,2]
[342505265,1731940245671,-500.0,9.999e-05,2]
[342505266,1731940245680,-274.95,9.999e-05,2]
[342505267,1731940245689,-500.0,9.999e-05,2]
[342505268,1731940245699,-500.0,9.999e-05,2]
[342505269,1731940245708,-500.0,9.999e-05,2]
[342505270,1731940245717,-500.0,9.999e-05,2]
[342505271,1731940245726,-500.0,9.999e-05,2]
[342505272,1731940245740,-500.0,9.999e-05,2]
[342505273,1731940245749,-187.19413524,9.999e-05,2]
[342505274,1731940245758,-2682.86176811,9.999e-05,2]
[342505275,1731940245768,-456.04331541,9.999e-05,2]
[342505276,1731940245778,-500.0,9.999e-05,2]
[342505277,1731940245787,-500.0,9.999e-05,2]
[342505278,1731940245797,-500.0,9.999e-05,2]
[342505279,1731940245806,-500.0,9.999e-05,2]
[342505280,1731940245816,-500.0,9.999e-05,2]
[342505282,1731940245827,-500.0,9.999e-05,2]
[342505283,1731940245837,-500.0,9.999e-05,2]
[342505284,1731940245847,-500.0,9.999e-05,2]
[342505285,1731940245857,-500.0,9.999e-05,2]
[342505286,1731940245867,-500.0,9.999e-05,2]
[342505287,1731940245876,-500.0,9.999e-05,2]
[342505288,1731940245885,-500.0,9.999e-05,2]
[342505289,1731940245893,-500.0,9.999e-05,2]
[342505290,1731940245903,-500.0,9.999e-05,2]
[342505291,1731940245912,-500.0,9.999e-05,2]
[342505292,1731940245922,-500.0,9.999e-05,2]
[342505293,1731940245931,-500.0,9.999e-05,2]
[342505294,1731940245940,-345.8,9.999e-05,2]
[342505295,1731940245949,-500.0,9.999e-05,2]
[342505296,1731940245959,-500.0,9.999e-05,2]
[342505297,1731940245968,-500.0,9.999e-05,2]
[342505298,1731940245977,-500.0,9.999e-05,2]
[342505299,1731940245986,-500.0,9.999e-05,2]
[342505300,1731940245996,-500.0,9.999e-05,2]
[342505301,1731940246005,-500.0,9.999e-05,2]
[342505302,1731940246015,-468.04,9.999e-05,2]
[342505303,1731940246024,-176152.32235041,9.999e-05,2]
[342505304,1731940246033,-189.5603762,9.999e-05,2]
[342505305,1731940246043,-500.0,9.999e-05,2]
[342505306,1731940246052,-500.0,9.999e-05,2]
[342505307,1731940246061,-469.12856761,9.999e-05,2]
[342505308,1731940246070,-500.0,9.999e-05,2]
[342505309,1731940246080,-500.0,9.999e-05,2]
[342505310,1731940246089,-500.0,9.999e-05,2]
[342505311,1731940246098,-158.64142807,9.999e-05,2]
[342505312,1731940246107,-500.0,9.999e-05,2]
[342505313,1731940246116,-500.0,9.999e-05,2]
[342505314,1731940246127,-210.94048192,9.999e-05,2]
[342505315,1731940246136,-500.0,9.999e-05,2]
[342505316,1731940246145,-500.0,9.999e-05,2]
[342505317,1731940246154,-500.0,9.999e-05,2]
[342505318,1731940246163,-500.0,9.999e-05,2]
[342505319,1731940246174,-500.0,9.999e-05,2]
[342505320,1731940246183,-500.0,9.999e-05,2]
[342505321,1731940246193,-500.0,9.999e-05,2]
[342505322,1731940246202,-500.0,9.999e-05,2]
[342505323,1731940246211,-500.0,9.999e-05,2]
[342505324,1731940246220,-500.0,9.999e-05,2]
[342505325,1731940246229,-500.0,9.999e-05,2]
[342505326,1731940246239,-306.04744763,9.999e-05,2]
[342505327,1731940246248,-500.0,9.999e-05,2]
[342505328,1731940246257,-358.10434958,9.999e-05,2]
[342505329,1731940246267,-500.0,9.999e-05,2]
[342505330,1731940246276,-500.0,9.999e-05,2]
[342505331,1731940246286,-500.0,9.999e-05,2]
[342505332,1731940246295,-500.0,9.999e-05,2]
[342505333,1731940246305,-500.0,9.999e-05,2]
[342505334,1731940246314,-500.0,9.999e-05,2]
[342505335,1731940246324,-500.0,9.999e-05,2]
[342505336,1731940246334,-587.29074685,9.999e-05,2]
[342505337,1731940246343,-500.0,9.999e-05,2]
[342505338,1731940246353,-500.0,9.999e-05,2]
[342505339,1731940246363,-500.0,9.999e-05,2]
[342505340,1731940246372,-500.0,9.999e-05,2]
[342505341,1731940246381,-500.0,9.999e-05,2]
[342505342,1731940246390,-500.0,9.999e-05,2]
[342505343,1731940246399,-500.0,9.999e-05,2]
[342505344,1731940246409,-500.0,9.999e-05,2]
[342505345,1731940246418,-500.0,9.999e-05,2]
[342505346,1731940246434,-500.0,9.999e-05,2]
[342505347,1731940246443,-500.0,9.999e-05,2]
[342505348,1731940246453,-513.44,9.999e-05,2]
[342505349,1731940246463,-500.0,9.999e-05,2]
[342505350,1731940246472,-500.0,9.999e-05,2]
[342505351,1731940246482,-505.13226591,9.999e-05,2]
[342505352,1731940246491,-500.0,9.999e-05,2]
[342505353,1731940246501,-500.0,9.999e-05,2]
[342505354,1731940246510,-500.0,9.999e-05,2]
[342505355,1731940246520,-356.25886484,9.999e-05,2]
[342505356,1731940246529,-199.14797484,9.999e-05,2]
[342505357,1731940246539,-500.0,9.999e-05,2]
[342505358,1731940246548,-500.0,9.999e-05,2]
[342505359,1731940246557,-500.0,9.999e-05,2]
[342505360,1731940246566,-500.0,9.999e-05,2]
[342505361,1731940246575,-500.0,9.999e-05,2]
[342505362,1731940246584,-500.0,9.999e-05,2]
[342505363,1731940246593,-500.0,9.999e-05,2]
[342505364,1731940246602,-500.0,9.999e-05,2]
[342505365,1731940246611,-500.0,9.999e-05,2]
[342505366,1731940246620,-500.0,9.999e-05,2]
[342505367,1731940246629,-603.68641523,9.999e-05,2]
[342505368,1731940246638,-500.0,9.999e-05,2]
[342505369,1731940246647,-631.05448717,9.999e-05,2]
[342505370,1731940246657,-500.0,9.999e-05,2]
[342505371,1731940246666,-500.0,9.999e-05,2]
[342505373,1731940246679,-606.60826364,9.999e-05,2]
[342505375,1731940246688,-500.0,9.999e-05,2]
[342505376,1731940246697,-500.0,9.999e-05,2]
[342505377,1731940246706,-500.0,9.999e-05,2]
[342505378,1731940246715,-500.0,9.999e-05,2]
[342505379,1731940246724,-500.0,9.999e-05,2]
[342505381,1731940246734,-216.18094291,9.999e-05,2]
[342505382,1731940246745,-500.0,9.999e-05,2]
[342505383,1731940246754,-156.01379925,9.999e-05,2]
[342505384,1731940246763,-500.0,9.999e-05,2]
[342505385,1731940246772,-500.0,9.999e-05,2]
[342505386,1731940246782,-500.0,9.999e-05,2]
[342505387,1731940246791,-500.0,9.999e-05,2]
[342505388,1731940246799,-500.0,9.999e-05,2]
[342505389,1731940246808,-197.14785466,9.999e-05,2]
[342505390,1731940246821,-500.0,9.999e-05,2]
[342505391,1731940246830,-325.29279474,9.999e-05,2]
[342505392,1731940246839,-399.03344184,9.999e-05,2]
[342505393,1731940246848,-500.0,9.999e-05,2]
[342505394,1731940246857,-500.0,9.999e-05,2]
[342505395,1731940246866,-500.0,9.999e-05,2]
[342505396,1731940246875,-500.0,9.999e-05,2]
[342505397,1731940246885,-500.0,9.999e-05,2]
[342505398,1731940246893,-500.0,9.999e-05,2]
[342505399,1731940246903,-500.0,9.999e-05,2]
[342505400,1731940246911,-500.0,9.999e-05,2]
[342505401,1731940246923,-500.0,9.999e-05,2]
[342505402,1731940246932,-500.0,9.999e-05,2]
[342505403,1731940246941,-500.0,9.999e-05,2]
[342505404,1731940246950,-500.0,9.999e-05,2]
[342505405,1731940246959,-500.0,9.999e-05,2]
[342505406,1731940246969,-500.0,9.999e-05,2]
[342505407,1731940246978,-500.0,9.999e-05,2]
[342505408,1731940246987,-500.0,9.999e-05,2]
[342505409,1731940246996,-500.0,9.999e-05,2]
[342505410,1731940247005,-453.86482489,9.999e-05,2]
[342505411,1731940247014,-500.0,9.999e-05,2]
[342505412,1731940247023,-624.70206127,9.999e-05,2]
[342505413,1731940247032,-500.0,9.999e-05,2]
[342505414,1731940247042,-427.18481943,9.999e-05,2]
[342505415,1731940247051,-500.0,9.999e-05,2]
[342505416,1731940247060,-500.0,9.999e-05,2]
[342505417,1731940247069,-500.0,9.999e-05,2]
[342505418,1731940247079,-500.0,9.999e-05,2]
[342505419,1731940247088,-259.03385684,9.999e-05,2]
[342505420,1731940247097,-208.54,9.999e-05,2]
[342505421,1731940247106,-191464.84882848,0.0001,2]
[342505422,1731940247116,-5926.39005767,0.0001,2]
[342505423,1731940247125,-645278.93812031,0.0001,2]
[342505424,1731940247147,-131392.20399302,0.0001,2]
[342505425,1731940247157,-35364.72850428,0.0001,2]
[342505426,1731940247169,-8590.49907842,0.0001,2]
[342505427,1731940247183,-1821.82014999,0.0001,2]
[342505428,1731940247193,-70435.6284337,0.0001,2]
[342505429,1731940247204,-97624.37156638,0.0001,2]
[342505430,1731940247216,-1697.29520189,0.0001,2]
[342505431,1731940247230,-3007.19067561,0.0001,2]
[342505432,1731940247247,-3134.41331504,0.0001,2]
[342505433,1731940247257,-3835.03830028,0.0001,2]
[342505434,1731940247273,-13838.15631248,0.0001,2]
[342505435,1731940247284,-5598.65967998,0.0001,2]
[342505436,1731940247412,-437.17379567,9.8e-05,2]
[342505437,1731940247427,-438.25298,9.8e-05,2]
[342505438,1731940247438,-476.6622116,9.8e-05,2]
[342505439,1731940247450,-318.65,9.8e-05,2]
[342505440,1731940247460,-2110.81611486,9.8e-05,2]
[342505441,1731940247472,-1955.12738098,9.8e-05,2]
[342505442,1731940247483,-663.2691215,9.8e-05,2]
[342505443,1731940247493,-428.90189368,9.8e-05,2]
[342505444,1731940247504,-6557.55996358,9.8e-05,2]
[342505451,1731940356427,1034.65,8.219e-05,2]
[342505463,1731940722677,150.0,8.502e-05,5]
[342505464,1731941109654,982.91,8.219e-05,2]
[342505465,1731941213848,110000.0,8.5e-05,2]
[342505471,1731941306488,1000.0,0.0002,60]
[342505472,1731941318793,1000.0,0.0001723,45]
[342505498,1731941432246,-150.19,8.865e-05,2]
[342505499,1731941432256,-499.23,8.89e-05,2]
[342505500,1731941432266,-250.0,8.896e-05,2]
[342505501,1731941432275,-746.08,9e-05,2]
[342505502,1731941432285,-150.0,9e-05,2]
[342505503,1731941432294,-500.0,9.662e-05,2]
[342505504,1731941432304,-500.0,9.662e-05,2]
[342505505,1731941432313,-500.0,9.662e-05,2]
[342505506,1731941432323,-150.0,9.735e-05,2]
[342505507,1731941432332,-150.0,9.738e-05,2]
[342505508,1731941432341,-150.0,9.739e-05,2]
[342505509,1731941432351,-150.0,9.742e-05,2]
[342505510,1731941432360,-150.0,9.745e-05,2]
[342505511,1731941432369,-150.0,9.746e-05,2]
[342505512,1731941432379,-218.56404364,9.747e-05,2]
[342505513,1731941432388,-150.0,9.759e-05,2]
[342505514,1731941432397,-150.0,9.765e-05,2]
[342505515,1731941432407,-150.0,9.77e-05,2]
[342505516,1731941432416,-150.0,9.777e-05,2]
[342505517,1731941432426,-150.0,9.78e-05,2]
[342505518,1731941432435,-150.0,9.782e-05,2]
[342505519,1731941432445,-201.0,9.79e-05,2]
[342505520,1731941432455,-150.0,9.795e-05,2]
[342505521,1731941432464,-300.0,9.798e-05,2]
[342505522,1731941432474,-2460.47328446,9.799e-05,2]
[342505544,1731941438961,-1304.69626161,9.799e-05,2]
[342505546,1731941438970,-2816.11473813,9.8e-05,2]
[342505549,1731941438983,-5363.9402,9.8e-05,2]
[342505551,1731941438992,-500.0,9.8e-05,2]
[342505553,1731941439001,-150.0,9.806e-05,2]
[342505555,1731941439011,-151.13159485,9.807e-05,2]
[342505556,1731941439020,-150.0,9.816e-05,2]
[342505557,1731941439029,-150.0,9.832e-05,2]
[342505558,1731941439039,-150.0,9.843e-05,2]
[342505559,1731941439048,-150.0,9.875e-05,2]
[342505560,1731941439056,-150.0,9.879e-05,2]
[342505561,1731941439065,-12553.3245,9.88e-05,2]
[342505562,1731941439074,-150.0,9.882e-05,2]
[342505563,1731941439084,-150.0,9.893e-05,2]
[342505564,1731941439093,-150.0,9.903e-05,2]
[342505565,1731941439101,-150.0,9.905e-05,2]
[342505566,1731941439110,-150.0,9.909e-05,2]
[342505567,1731941439120,-150.0,9.911e-05,2]
[342505568,1731941439130,-150.0,9.912e-05,2]
[342505569,1731941439145,-1500.0,9.916e-05,2]
[342505570,1731941439154,-150.0,9.924e-05,2]
[342505571,1731941439162,-1007.19270541,9.941e-05,2]
[342505572,1731941439175,-492.80729459,9.941e-05,2]
[342505573,1731941439184,-150.0,9.941e-05,2]
[342505574,1731941439193,-150.0,9.943e-05,2]
[342505575,1731941439202,-150.0,9.95e-05,2]
[342505576,1731941439213,-386.36511069,9.954e-05,2]
[342505577,1731941439222,-386.36511069,9.96e-05,2]
[342505578,1731941439236,-386.36511069,9.967e-05,2]
[342505579,1731941439246,-386.36511069,9.969e-05,2]
[342505580,1731941439254,-500.0,9.973e-05,2]
[342505581,1731941439264,-500.0,9.979e-05,2]
[342505582,1731941439273,-500.0,9.979e-05,2]
[342505583,1731941439282,-500.0,9.979e-05,2]
[342505584,1731941439291,-500.0,9.979e-05,2]
[342505585,1731941439301,-500.0,9.979e-05,2]
[342505586,1731941439310,-500.0,9.979e-05,2]
[342505587,1731941439320,-500.0,9.979e-05,2]
[342505588,1731941439329,-500.0,9.979e-05,2]
[342505589,1731941439338,-73.90657793,9.979e-05,2]
[342505590,1731941439350,-471.53342207,9.979e-05,2]
[342505591,1731941439359,-500.0,9.979e-05,2]
[342505592,1731941439369,-562.05,9.979e-05,2]
[342505593,1731941439377,-500.0,9.979e-05,2]
[342505594,1731941439393,-344.69667446,9.979e-05,2]
[342505595,1731941439402,-500.0,9.979e-05,2]
[342505596,1731941439412,-500.0,9.979e-05,2]
[342505597,1731941439421,-123.55750347,9.979e-05,2]
[342505598,1731941439595,-376.44249653,9.979e-05,2]
[342505599,1731941439604,-641.2,9.979e-05,2]
[342505600,1731941439613,-500.0,9.979e-05,2]
[342505601,1731941439622,-500.0,9.979e-05,2]
[342505602,1731941439632,-500.0,9.979e-05,2]
[342505603,1731941439641,-500.0,9.979e-05,2]
[342505604,1731941439651,-500.0,9.979e-05,2]
[342505605,1731941439660,-500.0,9.979e-05,2]
[342505606,1731941439669,-500.0,9.979e-05,2]
[342505607,1731941439678,-279.40934089,9.979e-05,2]
[342505608,1731941439687,-500.0,9.979e-05,2]
[342505609,1731941439696,-500.0,9.979e-05,2]
[342505610,1731941439705,-500.0,9.979e-05,2]
[342505611,1731941439714,-500.0,9.979e-05,2]
[342505612,1731941439723,-500.0,9.979e-05,2]
[342505613,1731941439736,-500.0,9.979e-05,2]
[342505614,1731941439746,-500.0,9.979e-05,2]
[342505615,1731941439755,-588.05,9.979e-05,2]
[342505616,1731941439764,-500.0,9.979e-05,2]
[342505617,1731941439776,-500.0,9.979e-05,2]
[342505618,1731941439785,-500.0,9.979e-05,2]
[342505619,1731941439794,-500.0,9.979e-05,2]
[342505620,1731941439803,-500.0,9.979e-05,2]
[342505621,1731941439813,-500.0,9.979e-05,2]
[342505622,1731941439822,-500.0,9.979e-05,2]
[342505623,1731941439832,-500.0,9.979e-05,2]
[342505624,1731941439841,-500.0,9.979e-05,2]
[342505625,1731941439850,-500.0,9.979e-05,2]
[342505626,1731941439859,-500.0,9.979e-05,2]
[342505627,1731941439868,-500.0,9.979e-05,2]
[342505628,1731941439878,-500.0,9.979e-05,2]
[342505629,1731941439887,-500.0,9.979e-05,2]
[342505630,1731941439896,-500.0,9.979e-05,2]
[342505631,1731941439905,-500.0,9.979e-05,2]
[342505632,1731941439915,-500.0,9.979e-05,2]
[342505633,1731941439924,-606.71,9.979e-05,2]
[342505634,1731941439933,-500.0,9.979e-05,2]
[342505635,1731941439942,-500.0,9.979e-05,2]
[342505636,1731941439951,-500.0,9.979e-05,2]
[342505637,1731941439961,-500.0,9.979e-05,2]
[342505638,1731941439970,-668.0,9.979e-05,2]
[342505639,1731941439982,-500.0,9.979e-05,2]
[342505640,1731941439991,-684.67,9.979e-05,2]
[342505641,1731941440000,-274.23499481,9.979e-05,2]
[342505642,1731941440013,-418.17500519,9.979e-05,2]
[342505644,1731941440022,-500.0,9.979e-05,2]
[342505646,1731941440031,-500.0,9.979e-05,2]
[342505647,1731941440041,-641.35,9.979e-05,2]
[342505648,1731941440050,-500.0,9.979e-05,2]
[342505649,1731941440060,-500.0,9.979e-05,2]
[342505650,1731941440069,-500.0,9.979e-05,2]
[342505651,1731941440080,-500.0,9.979e-05,2]
[342505652,1731941440090,-500.0,9.979e-05,2]
[342505653,1731941440099,-500.0,9.979e-05,2]
[342505654,1731941440109,-2461.53,9.979e-05,2]
[342505656,1731941440122,-500.0,9.979e-05,2]
[342505659,1731941440135,-500.0,9.979e-05,2]
[342505662,1731941440145,-500.0,9.979e-05,2]
[342505663,1731941440154,-500.0,9.979e-05,2]
[342505664,1731941440163,-500.0,9.979e-05,2]
[342505665,1731941440173,-500.0,9.979e-05,2]
[342505666,1731941440186,-525.37551005,9.979e-05,2]
[342505667,1731941440196,-500.0,9.979e-05,2]
[342505668,1731941440212,-241.00721612,9.979e-05,2]
[342505669,1731941440221,-500.0,9.979e-05,2]
[342505670,1731941440233,-17713.95505864,9.98e-05,2]
[342505671,1731941440245,-39992.39352,9.98e-05,2]
[342505672,1731941440256,-6527.92382095,9.98e-05,2]
[342505673,1731941440267,-3936.61582778,9.98e-05,2]
[342505674,1731941440277,-440.90742936,9.98e-05,2]
[342505675,1731941440368,-2716.66522628,9.98e-05,2]
[342505676,1731941440379,-77226.0156255,9.98e-05,2]
[342505677,1731941440394,-3022.92522577,9.98e-05,2]
[342505678,1731941440405,-2405.16961103,9.98e-05,2]
[342505679,1731941440416,-374.8688,9.98e-05,2]
[342505680,1731941440427,-8799.9998,9.98e-05,2]
[342505681,1731941440438,-9064.2924,9.98e-05,2]
[342505682,1731941440449,-2163.80638352,9.98e-05,2]
[342505683,1731941440460,-575.501587,9.98e-05,2]
[342505684,1731941440471,-445.95383517,9.98e-05,2]
[342505685,1731941440486,-447.43248689,9.98e-05,2]
[342505686,1731941440497,-3086.40000001,9.98e-05,2]
[342505687,1731941440508,-18181.37150021,9.98e-05,2]
[342505689,1731941440623,-1350.90100024,9.98e-05,2]
[342505690,1731941440635,-453.58355,9.98e-05,2]
[342505691,1731941440646,-51073.31731165,9.98e-05,2]
[342505692,1731941440655,-730.281,9.981e-05,2]
[342505693,1731941440665,-150.0,9.982e-05,2]
[342505694,1731941440674,-150.0,9.986e-05,2]
[342505695,1731941440684,-1500.0,9.987e-05,2]
[342505696,1731941440693,-150.0,9.987e-05,2]
[342505697,1731941440702,-220.226029,9.988e-05,2]
[342505698,1731941440711,-500.0,9.989e-05,2]
[342505699,1731941440720,-500.0,9.989e-05,2]
[342505700,1731941440734,-266.77,9.989e-05,2]
[342505701,1731941440743,-330.42,9.989e-05,2]
[342505702,1731941440752,-500.0,9.989e-05,2]
[342505703,1731941440761,-303.8,9.989e-05,2]
[342505704,1731941440770,-519.39,9.989e-05,2]
[342505705,1731941440780,-500.0,9.989e-05,2]
[342505706,1731941440789,-500.0,9.989e-05,2]
[342505707,1731941440798,-500.0,9.989e-05,2]
[342505708,1731941440807,-271.28334443,9.989e-05,2]
[342505709,1731941440819,-228.71665557,9.989e-05,2]
[342505710,1731941440829,-500.0,9.989e-05,2]
[342505711,1731941440838,-500.0,9.989e-05,2]
[342505712,1731941440847,-500.0,9.989e-05,2]
[342505713,1731941440856,-500.0,9.989e-05,2]
[342505714,1731941440866,-351.28,9.989e-05,2]
[342505715,1731941440875,-197.76046715,9.989e-05,2]
[342505716,1731941440884,-443.3428773,9.989e-05,2]
[342505717,1731941440896,-199.4471227,9.989e-05,2]
[342505718,1731941440905,-252.16,9.989e-05,2]
[342505719,1731941440915,-14.66331329,9.989e-05,2]
[342505720,1731941440928,-485.33668671,9.989e-05,2]
[342505721,1731941440937,-87.20191709,9.989e-05,2]
[342505722,1731941440948,-412.79808291,9.989e-05,2]
[342505723,1731941440957,-325.83,9.989e-05,2]
[342505724,1731941440966,-29.67191709,9.989e-05,2]
[342505725,1731941440979,-470.32808291,9.989e-05,2]
[342505726,1731941440988,-500.0,9.989e-05,2]
[342505727,1731941440997,-500.0,9.989e-05,2]
[342505728,1731941441007,-500.0,9.989e-05,2]
[342505729,1731941441017,-490.45722505,9.989e-05,2]
[342505730,1731941441028,-9.54277495,9.989e-05,2]
[342505731,1731941441038,-308.90988612,9.989e-05,2]
[342505732,1731941441049,-191.09011388,9.989e-05,2]
[342505733,1731941441058,-668.0,9.989e-05,2]
[342505734,1731941441067,-67.60788613,9.989e-05,2]
[342505735,1731941441079,-405.8121698,9.989e-05,2]
[342505736,1731941441090,-26.57994407,9.989e-05,2]
[342505737,1731941441100,-684.67,9.989e-05,2]
[342505738,1731941441109,-692.41,9.989e-05,2]
[342505739,1731941441119,-500.0,9.989e-05,2]
[342505740,1731941441132,-551.47,9.989e-05,2]
[342505741,1731941441147,-474.01,9.989e-05,2]
[342505742,1731941441157,-500.0,9.989e-05,2]
[342505743,1731941441166,-500.0,9.989e-05,2]
[342505744,1731941441175,-500.0,9.989e-05,2]